[Event "*** Titled Tuesday Blitz"]
[Site "Chess.com"]
[Date "2020.04.28"]
[Round "9"]
[White "Mr_Sinigami"]
[Black "Art10ECHR"]
[Result "1/2-1/2"]
[WhiteElo "2539"]
[BlackElo "2404"]
[TimeControl "180+1"]
[EndTime "11:47:38 PDT"]
[Termination "Game drawn by repetition"]

1. d4 {[%clk 0:03:00.1]} 1... Nf6 {[%clk 0:02:59.6]} 2. c4 {[%clk 0:02:57.1]}
2... e6 {[%clk 0:02:59.6]} 3. Nf3 {[%clk 0:02:56.3]} 3... d5 {[%clk 0:02:59.4]}
4. e3 {[%clk 0:02:52.5]} 4... a6 {[%clk 0:02:57.8]} 5. Bd3 {[%clk 0:02:45]} 5...
Nbd7 {[%clk 0:02:52.8]} 6. O-O {[%clk 0:02:42.8]} 6... b6 {[%clk 0:02:50.5]} 7.
cxd5 {[%clk 0:02:40.7]} 7... exd5 {[%clk 0:02:49.9]} 8. b3 {[%clk 0:02:30]} 8...
Bb7 {[%clk 0:02:48.2]} 9. Bb2 {[%clk 0:02:30.2]} 9... Bd6 {[%clk 0:02:47.6]} 10.
Nbd2 {[%clk 0:02:25.6]} 10... O-O {[%clk 0:02:45.9]} 11. Ne5 {[%clk 0:02:25.6]}
11... Ne4 {[%clk 0:02:42.8]} 12. Rc1 {[%clk 0:02:17.6]} 12... Re8 {[%clk
0:02:37.6]} 13. Nxd7 {[%clk 0:01:51]} 13... Qxd7 {[%clk 0:02:28.8]} 14. Nf3
{[%clk 0:01:39.3]} 14... Qe6 {[%clk 0:02:09.9]} 15. Rc2 {[%clk 0:01:15.4]} 15...
Qh6 {[%clk 0:02:09]} 16. g3 {[%clk 0:01:06.6]} 16... Re6 {[%clk 0:02:02.3]} 17.
Qc1 {[%clk 0:01:05.8]} 17... Qh5 {[%clk 0:01:43.9]} 18. Kg2 {[%clk 0:01:03.4]}
18... Rh6 {[%clk 0:01:41.8]} 19. Rh1 {[%clk 0:00:18.8]} 19... Qh3+ {[%clk
0:01:30.6]} 20. Kg1 {[%clk 0:00:18.7]} 20... Rf6 {[%clk 0:01:22.1]} 21. Bf1
{[%clk 0:00:18.1]} 21... Qh5 {[%clk 0:01:17]} 22. Ne1 {[%clk 0:00:18.1]} 22...
Re8 {[%clk 0:01:11.5]} 23. Bg2 {[%clk 0:00:18.3]} 23... Ng5 {[%clk 0:01:07.2]}
24. Ba3 {[%clk 0:00:16.6]} 24... Bxa3 {[%clk 0:00:53.1]} 25. Qxa3 {[%clk
0:00:17.5]} 25... Qd1 {[%clk 0:00:48.6]} 26. Qc1 {[%clk 0:00:15.9]} 26... Qxc1
{[%clk 0:00:48.6]} 27. Rxc1 {[%clk 0:00:16.3]} 27... c6 {[%clk 0:00:48.9]} 28.
Rc2 {[%clk 0:00:14.2]} 28... Bc8 {[%clk 0:00:48]} 29. h4 {[%clk 0:00:11.4]}
29... Ne4 {[%clk 0:00:45]} 30. Bf3 {[%clk 0:00:10.5]} 30... Bf5 {[%clk
0:00:41.1]} 31. Rb2 {[%clk 0:00:10.8]} 31... c5 {[%clk 0:00:33.5]} 32. dxc5
{[%clk 0:00:10.3]} 32... bxc5 {[%clk 0:00:32.9]} 33. Kg2 {[%clk 0:00:11.2]}
33... Rb6 {[%clk 0:00:30.8]} 34. Nc2 {[%clk 0:00:08.4]} 34... a5 {[%clk
0:00:21.6]} 35. Na3 {[%clk 0:00:06.9]} 35... a4 {[%clk 0:00:20.6]} 36. Rd1
{[%clk 0:00:07]} 36... Be6 {[%clk 0:00:19.7]} 37. Nb1 {[%clk 0:00:06.4]} 37...
Reb8 {[%clk 0:00:19]} 38. Rc2 {[%clk 0:00:05.3]} 38... axb3 {[%clk 0:00:18.4]}
39. axb3 {[%clk 0:00:06.2]} 39... Rxb3 {[%clk 0:00:18.7]} 40. Nd2 {[%clk
0:00:06.8]} 40... Rd3 {[%clk 0:00:17.4]} 41. Nxe4 {[%clk 0:00:05.7]} 41... dxe4
{[%clk 0:00:15.9]} 42. Rxd3 {[%clk 0:00:04.8]} 42... exd3 {[%clk 0:00:15]} 43.
Rxc5 {[%clk 0:00:05.2]} 43... Rd8 {[%clk 0:00:14.7]} 44. Bd1 {[%clk 0:00:04.6]}
44... Kf8 {[%clk 0:00:13.5]} 45. Rc7 {[%clk 0:00:03.6]} 45... Rd7 {[%clk
0:00:11.8]} 46. Rxd7 {[%clk 0:00:03.1]} 46... Bxd7 {[%clk 0:00:12.7]} 47. e4
{[%clk 0:00:03.7]} 47... Bc6 {[%clk 0:00:10.6]} 48. Kf3 {[%clk 0:00:03.7]} 48...
d2 {[%clk 0:00:09.5]} 49. Ke3 {[%clk 0:00:03.7]} 49... Ke7 {[%clk 0:00:08.5]}
50. f3 {[%clk 0:00:04.1]} 50... Ke6 {[%clk 0:00:08.7]} 51. Kxd2 {[%clk
0:00:04.3]} 51... f6 {[%clk 0:00:09.3]} 52. Ke3 {[%clk 0:00:05.2]} 52... g5
{[%clk 0:00:09.4]} 53. Bb3+ {[%clk 0:00:05.5]} 53... Ke7 {[%clk 0:00:09.1]} 54.
h5 {[%clk 0:00:05.1]} 54... h6 {[%clk 0:00:09.2]} 55. g4 {[%clk 0:00:04.8]}
55... Be8 {[%clk 0:00:09.4]} 56. Bd5 {[%clk 0:00:05]} 56... Kd6 {[%clk
0:00:09.7]} 57. Kd4 {[%clk 0:00:04.1]} 57... Bd7 {[%clk 0:00:10.2]} 58. Bc4
{[%clk 0:00:04.1]} 58... Be8 {[%clk 0:00:10.4]} 59. Be2 {[%clk 0:00:04.1]} 59...
Bd7 {[%clk 0:00:10.8]} 60. Bd1 {[%clk 0:00:04.1]} 60... Be8 {[%clk 0:00:10.9]}
61. Bc2 {[%clk 0:00:04.2]} 61... Bd7 {[%clk 0:00:11.2]} 62. Bd3 {[%clk
0:00:03.5]} 62... Be8 {[%clk 0:00:10.9]} 63. Bc4 {[%clk 0:00:03.7]} 63... Bd7
{[%clk 0:00:10.9]} 64. Bd3 {[%clk 0:00:03.5]} 64... Be8 {[%clk 0:00:10.9]} 65.
Bc2 {[%clk 0:00:03.2]} 65... Bd7 {[%clk 0:00:11.3]} 66. Bd1 {[%clk 0:00:03.2]}
66... Be8 {[%clk 0:00:11.6]} 67. Be2 {[%clk 0:00:02.9]} 67... Bd7 {[%clk
0:00:12.2]} 68. Bd3 {[%clk 0:00:03.4]} 1/2-1/2

[Event "*** Titled Tuesday Blitz"]
[Site "Chess.com"]
[Date "2020.04.28"]
[Round "9"]
[White "SCIM"]
[Black "rogapa"]
[Result "1-0"]
[WhiteElo "2509"]
[BlackElo "2714"]
[TimeControl "180+1"]
[EndTime "11:47:39 PDT"]
[Termination "SCIM won by checkmate"]

1. d4 {[%clk 0:03:00.9]} 1... e6 {[%clk 0:03:00.9]} 2. c4 {[%clk 0:03:00.9]}
2... Nf6 {[%clk 0:03:01.8]} 3. g3 {[%clk 0:03:00]} 3... d5 {[%clk 0:03:02.7]} 4.
Nf3 {[%clk 0:03:00]} 4... Be7 {[%clk 0:03:03]} 5. Bg2 {[%clk 0:02:59.4]} 5...
O-O {[%clk 0:03:03.2]} 6. O-O {[%clk 0:02:59.9]} 6... dxc4 {[%clk 0:03:04.1]} 7.
Qc2 {[%clk 0:03:00.1]} 7... a6 {[%clk 0:03:03.9]} 8. a4 {[%clk 0:03:00.5]} 8...
Bd7 {[%clk 0:03:03.8]} 9. Bg5 {[%clk 0:02:58.3]} 9... c5 {[%clk 0:02:54.6]} 10.
dxc5 {[%clk 0:02:52.1]} 10... Bxc5 {[%clk 0:02:48.4]} 11. Nbd2 {[%clk
0:02:48.3]} 11... h6 {[%clk 0:02:42.3]} 12. Bxf6 {[%clk 0:02:43.9]} 12... Qxf6
{[%clk 0:02:43.2]} 13. Ne4 {[%clk 0:02:38]} 13... Qe7 {[%clk 0:02:42.9]} 14.
Qxc4 {[%clk 0:02:29.9]} 14... Ba7 {[%clk 0:02:41]} 15. Ne5 {[%clk 0:02:24.2]}
15... Nc6 {[%clk 0:02:39.9]} 16. Nxd7 {[%clk 0:02:19.9]} 16... Qxd7 {[%clk
0:02:40.8]} 17. Rad1 {[%clk 0:02:15.1]} 17... Qe7 {[%clk 0:02:39.6]} 18. e3
{[%clk 0:01:59]} 18... Rfd8 {[%clk 0:02:37]} 19. Qb3 {[%clk 0:01:54.6]} 19...
Na5 {[%clk 0:02:20.7]} 20. Qc3 {[%clk 0:01:46.2]} 20... Nc6 {[%clk 0:02:20.4]}
21. h4 {[%clk 0:01:38]} 21... Rd5 {[%clk 0:02:12.1]} 22. Qb3 {[%clk 0:01:26.6]}
22... Rad8 {[%clk 0:02:03.7]} 23. Nc3 {[%clk 0:01:24.9]} 23... Ra5 {[%clk
0:01:56.3]} 24. Bxc6 {[%clk 0:01:17.3]} 24... bxc6 {[%clk 0:01:51.6]} 25. Qc4
{[%clk 0:01:14.8]} 25... Rb8 {[%clk 0:01:41.8]} 26. Qxc6 {[%clk 0:01:08.5]}
26... Rc5 {[%clk 0:01:38]} 27. Qd7 {[%clk 0:01:03.7]} 27... Qxd7 {[%clk
0:01:35.8]} 28. Rxd7 {[%clk 0:01:04.6]} 28... Bb6 {[%clk 0:01:36.7]} 29. Rfd1
{[%clk 0:01:01.8]} 29... Ba5 {[%clk 0:01:35.7]} 30. Ne4 {[%clk 0:01:00.7]} 30...
Rc2 {[%clk 0:01:16.7]} 31. Ra7 {[%clk 0:00:51.3]} 31... f5 {[%clk 0:01:14.1]}
32. Rxa6 {[%clk 0:00:42]} 32... Bc7 {[%clk 0:00:58.5]} 33. Nd6 {[%clk
0:00:25.6]} 33... Rbxb2 {[%clk 0:00:56.3]} 34. Rf1 {[%clk 0:00:23.3]} 34... Kh7
{[%clk 0:00:51.9]} 35. Kg2 {[%clk 0:00:18.5]} 35... Bb6 {[%clk 0:00:49.7]} 36.
Kf3 {[%clk 0:00:15.9]} 36... g5 {[%clk 0:00:47.6]} 37. hxg5 {[%clk 0:00:15.3]}
37... hxg5 {[%clk 0:00:48.5]} 38. Nb5 {[%clk 0:00:14.9]} 38... Kg6 {[%clk
0:00:45.1]} 39. Rxb6 {[%clk 0:00:13.7]} 39... Kf6 {[%clk 0:00:33.9]} 40. Rxe6+
{[%clk 0:00:11.1]} 40... Kxe6 {[%clk 0:00:34.8]} 41. Nd4+ {[%clk 0:00:11.5]}
41... Ke5 {[%clk 0:00:34.5]} 42. Nxc2 {[%clk 0:00:12.4]} 42... Rxc2 {[%clk
0:00:34.9]} 43. Ra1 {[%clk 0:00:12.9]} 43... f4 {[%clk 0:00:28.8]} 44. gxf4+
{[%clk 0:00:12.3]} 44... gxf4 {[%clk 0:00:29.7]} 45. a5 {[%clk 0:00:09.9]} 45...
Kf5 {[%clk 0:00:30.6]} 46. a6 {[%clk 0:00:08]} 46... fxe3 {[%clk 0:00:29.4]} 47.
fxe3 {[%clk 0:00:08.9]} 47... Rc8 {[%clk 0:00:28.9]} 48. a7 {[%clk 0:00:09.8]}
48... Ra8 {[%clk 0:00:29.6]} 49. Ra5+ {[%clk 0:00:09.2]} 49... Ke6 {[%clk
0:00:29.5]} 50. e4 {[%clk 0:00:10.1]} 50... Kd6 {[%clk 0:00:30.4]} 51. Kf4
{[%clk 0:00:10.3]} 51... Kc6 {[%clk 0:00:31.3]} 52. Ra1 {[%clk 0:00:10.4]} 52...
Kb6 {[%clk 0:00:32.2]} 53. e5 {[%clk 0:00:10.4]} 53... Kb7 {[%clk 0:00:31.9]}
54. Ke4 {[%clk 0:00:10.3]} 54... Kc6 {[%clk 0:00:29.1]} 55. Kf5 {[%clk
0:00:08.6]} 55... Kb7 {[%clk 0:00:29.3]} 56. e6 {[%clk 0:00:08.2]} 56... Rf8+
{[%clk 0:00:29.3]} 57. Ke5 {[%clk 0:00:08.4]} 57... Ka8 {[%clk 0:00:30.2]} 58.
e7 {[%clk 0:00:08.7]} 58... Rh8 {[%clk 0:00:30]} 59. Ke6 {[%clk 0:00:08.7]}
59... Rh6+ {[%clk 0:00:30.5]} 60. Kd7 {[%clk 0:00:08.6]} 60... Rh7 {[%clk
0:00:30.8]} 61. Kd8 {[%clk 0:00:08.1]} 61... Rg7 {[%clk 0:00:29.1]} 62. e8=Q
{[%clk 0:00:08]} 62... Rb7 {[%clk 0:00:25.6]} 63. Rc1 {[%clk 0:00:05.6]} 63...
Kxa7 {[%clk 0:00:23.7]} 64. Ra1+ {[%clk 0:00:04.8]} 64... Kb8 {[%clk 0:00:22.5]}
65. Qe5+ {[%clk 0:00:05.3]} 65... Rc7 {[%clk 0:00:22.9]} 66. Qxc7# {[%clk
0:00:05.7]} 1-0

[Event "*** Titled Tuesday Blitz"]
[Site "Chess.com"]
[Date "2020.04.28"]
[Round "9"]
[White "Funkmaus"]
[Black "Chichin_chao"]
[Result "1/2-1/2"]
[WhiteElo "2215"]
[BlackElo "2359"]
[TimeControl "180+1"]
[EndTime "11:47:40 PDT"]
[Termination "Game drawn by repetition"]

1. d4 {[%clk 0:02:58.2]} 1... Nf6 {[%clk 0:02:22.7]} 2. Nf3 {[%clk 0:02:57.6]}
2... d6 {[%clk 0:02:22.3]} 3. g3 {[%clk 0:02:56.7]} 3... Nbd7 {[%clk 0:02:22.5]}
4. Bg2 {[%clk 0:02:57.3]} 4... e5 {[%clk 0:02:23.1]} 5. dxe5 {[%clk 0:02:58.2]}
5... dxe5 {[%clk 0:02:23.7]} 6. O-O {[%clk 0:02:56.6]} 6... c6 {[%clk 0:02:24]}
7. c3 {[%clk 0:02:55.7]} 7... Qc7 {[%clk 0:02:24.3]} 8. Nbd2 {[%clk 0:02:54.5]}
8... a5 {[%clk 0:02:24.6]} 9. e4 {[%clk 0:02:54.2]} 9... Bc5 {[%clk 0:02:24.3]}
10. Qc2 {[%clk 0:02:52.6]} 10... O-O {[%clk 0:02:23.1]} 11. Nc4 {[%clk
0:02:51.6]} 11... Re8 {[%clk 0:02:21.6]} 12. Be3 {[%clk 0:02:50.4]} 12... b5
{[%clk 0:02:20.8]} 13. Bxc5 {[%clk 0:02:45.1]} 13... Nxc5 {[%clk 0:02:21.7]} 14.
Ncd2 {[%clk 0:02:36]} 14... Ba6 {[%clk 0:02:21]} 15. Rfe1 {[%clk 0:02:30.4]}
15... Rad8 {[%clk 0:02:19.8]} 16. Nb3 {[%clk 0:02:20.2]} 16... Ne6 {[%clk
0:02:00]} 17. Rad1 {[%clk 0:02:14.1]} 17... c5 {[%clk 0:01:40.7]} 18. Rxd8
{[%clk 0:01:54.5]} 18... Rxd8 {[%clk 0:01:41.6]} 19. Nh4 {[%clk 0:01:45.9]}
19... c4 {[%clk 0:01:35.1]} 20. Nd2 {[%clk 0:01:41]} 20... Nc5 {[%clk 0:01:35]}
21. Nf5 {[%clk 0:01:37.5]} 21... Bb7 {[%clk 0:01:28.3]} 22. Nf1 {[%clk
0:01:17.6]} 22... g6 {[%clk 0:01:10.2]} 23. Nh4 {[%clk 0:01:09.1]} 23... Rd3
{[%clk 0:01:06.2]} 24. f3 {[%clk 0:01:00.1]} 24... Qb6 {[%clk 0:01:01.2]} 25.
Kh1 {[%clk 0:00:59.3]} 25... Kg7 {[%clk 0:00:55.3]} 26. Ne3 {[%clk 0:00:55]}
26... Ne6 {[%clk 0:00:49.2]} 27. Qc1 {[%clk 0:00:53.1]} 27... h6 {[%clk
0:00:41]} 28. Nef5+ {[%clk 0:00:44.9]} 28... gxf5 {[%clk 0:00:34.7]} 29. Nxf5+
{[%clk 0:00:45.7]} 29... Kg8 {[%clk 0:00:22.8]} 30. Qxh6 {[%clk 0:00:46.3]}
30... Nh7 {[%clk 0:00:15.7]} 31. Bh3 {[%clk 0:00:25.3]} 31... Qf2 {[%clk
0:00:15.5]} 32. Rf1 {[%clk 0:00:12.2]} 32... Qd2 {[%clk 0:00:15.4]} 33. Ne7+
{[%clk 0:00:09.4]} 33... Kh8 {[%clk 0:00:14.9]} 34. Qh5 {[%clk 0:00:08.6]} 34...
Rxf3 {[%clk 0:00:10.8]} 35. Qxf3 {[%clk 0:00:07.5]} 35... Qd3 {[%clk 0:00:10.1]}
36. Bf5 {[%clk 0:00:07.5]} 36... Qxf3+ {[%clk 0:00:09.2]} 37. Rxf3 {[%clk
0:00:08.3]} 37... Nhg5 {[%clk 0:00:09.8]} 38. Rf1 {[%clk 0:00:07.9]} 38... Nxe4
{[%clk 0:00:09.9]} 39. Bxe4 {[%clk 0:00:08.5]} 39... Bxe4+ {[%clk 0:00:09.2]}
40. Kg1 {[%clk 0:00:09]} 40... Kg7 {[%clk 0:00:09.6]} 41. Re1 {[%clk 0:00:09.1]}
41... Bd3 {[%clk 0:00:09.2]} 42. g4 {[%clk 0:00:09.1]} 42... Kf6 {[%clk
0:00:09.2]} 43. Nd5+ {[%clk 0:00:09.2]} 43... Kg5 {[%clk 0:00:09.3]} 44. h3
{[%clk 0:00:09.5]} 44... Kh4 {[%clk 0:00:09]} 45. Rxe5 {[%clk 0:00:09.6]} 45...
Ng5 {[%clk 0:00:07.5]} 46. Re8 {[%clk 0:00:08.9]} 46... Kxh3 {[%clk 0:00:05.8]}
47. Ne3 {[%clk 0:00:06]} 47... Kg3 {[%clk 0:00:05.5]} 48. Rg8 {[%clk 0:00:05.4]}
48... Nh3+ {[%clk 0:00:05.1]} 49. Kh1 {[%clk 0:00:04.6]} 49... Nf2+ {[%clk
0:00:05.3]} 50. Kg1 {[%clk 0:00:05.1]} 50... Nh3+ {[%clk 0:00:05.1]} 51. Kh1
{[%clk 0:00:05.9]} 51... Nf2+ {[%clk 0:00:04]} 52. Kg1 {[%clk 0:00:06.7]} 52...
Nh3+ {[%clk 0:00:01.4]} 1/2-1/2

[Event "*** Titled Tuesday Blitz"]
[Site "Chess.com"]
[Date "2020.04.28"]
[Round "9"]
[White "Riptide27"]
[Black "praveenb2002"]
[Result "1/2-1/2"]
[WhiteElo "2520"]
[BlackElo "2726"]
[TimeControl "180+1"]
[EndTime "11:47:47 PDT"]
[Termination "Game drawn - insufficient material"]

1. e4 {[%clk 0:03:00.9]} 1... e5 {[%clk 0:02:57.3]} 2. Nf3 {[%clk 0:02:59.7]}
2... Nc6 {[%clk 0:02:58]} 3. Bc4 {[%clk 0:02:59.5]} 3... Nf6 {[%clk 0:02:57.1]}
4. Ng5 {[%clk 0:02:57.8]} 4... d5 {[%clk 0:02:52.1]} 5. exd5 {[%clk 0:02:58.7]}
5... Na5 {[%clk 0:02:51.7]} 6. Bb5+ {[%clk 0:02:58.1]} 6... c6 {[%clk
0:02:51.6]} 7. dxc6 {[%clk 0:02:59]} 7... bxc6 {[%clk 0:02:51.6]} 8. Be2 {[%clk
0:02:58.1]} 8... h6 {[%clk 0:02:50.7]} 9. Nh3 {[%clk 0:02:57.8]} 9... Bc5 {[%clk
0:02:48.1]} 10. d3 {[%clk 0:02:55.8]} 10... O-O {[%clk 0:02:47.8]} 11. Nc3
{[%clk 0:02:54.3]} 11... Nd5 {[%clk 0:02:43.6]} 12. O-O {[%clk 0:02:31.6]} 12...
Rb8 {[%clk 0:02:34.4]} 13. a3 {[%clk 0:02:28.3]} 13... Nxc3 {[%clk 0:02:11.5]}
14. bxc3 {[%clk 0:02:29.2]} 14... Bxh3 {[%clk 0:02:12.1]} 15. gxh3 {[%clk
0:02:27.9]} 15... f5 {[%clk 0:02:12.7]} 16. Bf3 {[%clk 0:02:27.3]} 16... Qh4
{[%clk 0:02:06.8]} 17. Bg2 {[%clk 0:02:19.2]} 17... Rbe8 {[%clk 0:01:57.6]} 18.
Rb1 {[%clk 0:02:12.5]} 18... e4 {[%clk 0:01:52.5]} 19. d4 {[%clk 0:01:53.7]}
19... Bd6 {[%clk 0:01:49.7]} 20. f4 {[%clk 0:01:40.2]} 20... g5 {[%clk
0:01:27.1]} 21. fxg5 {[%clk 0:01:35.6]} 21... hxg5 {[%clk 0:01:26.3]} 22. Qe2
{[%clk 0:01:27.6]} 22... f4 {[%clk 0:01:18.7]} 23. Qa6 {[%clk 0:01:16]} 23... f3
{[%clk 0:01:05.8]} 24. Qxa5 {[%clk 0:01:13.2]} 24... fxg2 {[%clk 0:01:05.8]} 25.
Rxf8+ {[%clk 0:01:09.5]} 25... Rxf8 {[%clk 0:01:05.7]} 26. Qxg5+ {[%clk
0:01:07.7]} 26... Qxg5 {[%clk 0:01:01.2]} 27. Bxg5 {[%clk 0:01:08.6]} 27... Rf3
{[%clk 0:00:59.1]} 28. Rb3 {[%clk 0:01:00.6]} 28... Rxh3 {[%clk 0:00:52.2]} 29.
Kxg2 {[%clk 0:01:00.3]} 29... Rxh2+ {[%clk 0:00:52.5]} 30. Kf1 {[%clk
0:00:58.1]} 30... Rxc2 {[%clk 0:00:52.2]} 31. Ke1 {[%clk 0:00:52.1]} 31... Ra2
{[%clk 0:00:45.9]} 32. Bd2 {[%clk 0:00:50.6]} 32... Rxa3 {[%clk 0:00:42.3]} 33.
Rb7 {[%clk 0:00:50.1]} 33... e3 {[%clk 0:00:28.5]} 34. Bxe3 {[%clk 0:00:48.4]}
34... Rxc3 {[%clk 0:00:29.1]} 35. Ke2 {[%clk 0:00:43.9]} 35... a5 {[%clk
0:00:26.2]} 36. Bd2 {[%clk 0:00:36.1]} 36... Rc4 {[%clk 0:00:22.9]} 37. Kd3
{[%clk 0:00:34.8]} 37... Ra4 {[%clk 0:00:22.8]} 38. Rb6 {[%clk 0:00:34.2]} 38...
Ra3+ {[%clk 0:00:20.1]} 39. Ke4 {[%clk 0:00:33.2]} 39... Kf7 {[%clk 0:00:18.6]}
40. Rxc6 {[%clk 0:00:31.4]} 40... Ke7 {[%clk 0:00:18.3]} 41. Ra6 {[%clk
0:00:31.1]} 41... Bc7 {[%clk 0:00:17.1]} 42. Ra7 {[%clk 0:00:27]} 42... Kd8
{[%clk 0:00:17.2]} 43. Bf4 {[%clk 0:00:19.7]} 43... Bb6 {[%clk 0:00:14.6]} 44.
Ra6 {[%clk 0:00:19.9]} 44... Rb3 {[%clk 0:00:11.9]} 45. Bd6 {[%clk 0:00:18.8]}
45... Rb5 {[%clk 0:00:10.8]} 46. d5 {[%clk 0:00:18.1]} 46... Kc8 {[%clk
0:00:11.2]} 47. Rxb6 {[%clk 0:00:12]} 47... Rxb6 {[%clk 0:00:11.1]} 48. Bc5
{[%clk 0:00:11.3]} 48... Rb5 {[%clk 0:00:11.4]} 49. Kd4 {[%clk 0:00:11.7]} 49...
Kd7 {[%clk 0:00:10.9]} 50. Kc4 {[%clk 0:00:11.9]} 50... Rb1 {[%clk 0:00:09.2]}
51. Ba3 {[%clk 0:00:12.2]} 51... Kc7 {[%clk 0:00:08.9]} 52. Bc5 {[%clk
0:00:12.1]} 52... Kb7 {[%clk 0:00:09.2]} 53. Ba3 {[%clk 0:00:11.6]} 53... Kb6
{[%clk 0:00:09.3]} 54. Bc5+ {[%clk 0:00:11.4]} 54... Ka6 {[%clk 0:00:09.8]} 55.
Ba3 {[%clk 0:00:12.3]} 55... Rb8 {[%clk 0:00:08.2]} 56. d6 {[%clk 0:00:11.9]}
56... Kb6 {[%clk 0:00:07.6]} 57. Kd5 {[%clk 0:00:11]} 57... Re8 {[%clk
0:00:06.8]} 58. d7 {[%clk 0:00:10.7]} 58... Rd8 {[%clk 0:00:07.2]} 59. Kd6
{[%clk 0:00:10.6]} 59... Rh8 {[%clk 0:00:04.5]} 60. Ke7 {[%clk 0:00:09.4]} 60...
Rh7+ {[%clk 0:00:04.6]} 61. Ke8 {[%clk 0:00:09.2]} 61... Rxd7 {[%clk 0:00:04.3]}
62. Kxd7 {[%clk 0:00:09.2]} 62... Kb5 {[%clk 0:00:05.2]} 63. Kd6 {[%clk
0:00:09.1]} 63... a4 {[%clk 0:00:05.6]} 64. Bc1 {[%clk 0:00:08.5]} 64... Kc4
{[%clk 0:00:06.5]} 65. Kc6 {[%clk 0:00:08.2]} 65... Kb3 {[%clk 0:00:07.4]} 66.
Kb5 {[%clk 0:00:08.1]} 66... a3 {[%clk 0:00:08.1]} 67. Bxa3 {[%clk 0:00:07.9]}
1/2-1/2

[Event "*** Titled Tuesday Blitz"]
[Site "Chess.com"]
[Date "2020.04.28"]
[Round "9"]
[White "tufferguy"]
[Black "awesomevishesh"]
[Result "0-1"]
[WhiteElo "2371"]
[BlackElo "2507"]
[TimeControl "180+1"]
[EndTime "11:47:49 PDT"]
[Termination "awesomevishesh won by checkmate"]

1. e4 {[%clk 0:03:00.9]} 1... c5 {[%clk 0:02:59.6]} 2. c3 {[%clk 0:03:00]} 2...
Nf6 {[%clk 0:02:59.3]} 3. e5 {[%clk 0:02:58.9]} 3... Nd5 {[%clk 0:02:59.3]} 4.
Nf3 {[%clk 0:02:58.7]} 4... d6 {[%clk 0:02:57.6]} 5. d4 {[%clk 0:02:57]} 5...
cxd4 {[%clk 0:02:56.9]} 6. cxd4 {[%clk 0:02:55.4]} 6... Nc6 {[%clk 0:02:56.6]}
7. Bc4 {[%clk 0:02:50.6]} 7... Nb6 {[%clk 0:02:56.3]} 8. Bb5 {[%clk 0:02:47.9]}
8... Bd7 {[%clk 0:02:56]} 9. Nc3 {[%clk 0:02:23.1]} 9... dxe5 {[%clk 0:02:53.7]}
10. d5 {[%clk 0:02:19.5]} 10... Nb8 {[%clk 0:01:47]} 11. Nxe5 {[%clk 0:02:05.7]}
11... Bxb5 {[%clk 0:01:46.2]} 12. Nxb5 {[%clk 0:02:03.4]} 12... a6 {[%clk
0:01:45.2]} 13. Nc3 {[%clk 0:01:52.1]} 13... N8d7 {[%clk 0:01:26.5]} 14. Qe2
{[%clk 0:01:37]} 14... Nxe5 {[%clk 0:01:24.6]} 15. Qxe5 {[%clk 0:01:36.2]} 15...
Qd6 {[%clk 0:01:24.4]} 16. Qd4 {[%clk 0:01:11.4]} 16... e5 {[%clk 0:01:23.5]}
17. Qe4 {[%clk 0:01:04.6]} 17... Be7 {[%clk 0:01:22.1]} 18. O-O {[%clk
0:01:03.6]} 18... O-O {[%clk 0:01:21.8]} 19. Be3 {[%clk 0:00:51.1]} 19... Nd7
{[%clk 0:01:18.1]} 20. Rac1 {[%clk 0:00:41.2]} 20... f5 {[%clk 0:01:17.4]} 21.
Qc4 {[%clk 0:00:40.8]} 21... Rac8 {[%clk 0:01:11.2]} 22. Qb3 {[%clk 0:00:39.5]}
22... b5 {[%clk 0:01:08.1]} 23. Nxb5 {[%clk 0:00:28.2]} 23... axb5 {[%clk
0:01:07.1]} 24. Rc6 {[%clk 0:00:27.4]} 24... Qb4 {[%clk 0:00:59.1]} 25. Rfc1
{[%clk 0:00:12]} 25... Qxb3 {[%clk 0:00:55.8]} 26. axb3 {[%clk 0:00:12.9]} 26...
Rxc6 {[%clk 0:00:54.8]} 27. dxc6 {[%clk 0:00:13.2]} 27... Nf6 {[%clk 0:00:54.6]}
28. c7 {[%clk 0:00:09.3]} 28... Rc8 {[%clk 0:00:54.1]} 29. Ba7 {[%clk
0:00:05.9]} 29... Kf7 {[%clk 0:00:52.3]} 30. Kf1 {[%clk 0:00:04.3]} 30... Ke6
{[%clk 0:00:50.7]} 31. Bb8 {[%clk 0:00:04.2]} 31... Bd6 {[%clk 0:00:48.6]} 32.
Rc6 {[%clk 0:00:03.3]} 32... Kd7 {[%clk 0:00:48]} 33. Rc1 {[%clk 0:00:02.5]}
33... Bxc7 {[%clk 0:00:43.8]} 34. Rd1+ {[%clk 0:00:03.4]} 34... Kc6 {[%clk
0:00:41.8]} 35. Ba7 {[%clk 0:00:04.3]} 35... Ra8 {[%clk 0:00:40.4]} 36. Be3
{[%clk 0:00:04.5]} 36... f4 {[%clk 0:00:40]} 37. Rc1+ {[%clk 0:00:05.4]} 37...
Kd7 {[%clk 0:00:39]} 38. Rd1+ {[%clk 0:00:04.3]} 38... Ke6 {[%clk 0:00:39]} 39.
Bc5 {[%clk 0:00:03.9]} 39... Ra2 {[%clk 0:00:36.9]} 40. Ba3 {[%clk 0:00:04]}
40... Nd5 {[%clk 0:00:34.5]} 41. Rc1 {[%clk 0:00:03.2]} 41... Bb6 {[%clk
0:00:15.8]} 42. Rc6+ {[%clk 0:00:02.3]} 42... Kf5 {[%clk 0:00:15]} 43. Rd6
{[%clk 0:00:02.5]} 43... b4 {[%clk 0:00:09.7]} 44. Bxb4 {[%clk 0:00:02.5]} 44...
Nxb4 {[%clk 0:00:08.5]} 45. Rxb6 {[%clk 0:00:03.1]} 45... Nd3 {[%clk 0:00:08.1]}
46. Ke2 {[%clk 0:00:03.7]} 46... Nxb2 {[%clk 0:00:07.4]} 47. Rb7 {[%clk
0:00:03.6]} 47... Nc4+ {[%clk 0:00:07.2]} 48. Kd3 {[%clk 0:00:03.9]} 48... Nd6
{[%clk 0:00:06.5]} 49. Rxg7 {[%clk 0:00:03.1]} 49... Rxf2 {[%clk 0:00:06.4]} 50.
Rxh7 {[%clk 0:00:02.6]} 50... Rxg2 {[%clk 0:00:06.2]} 51. Rh6 {[%clk 0:00:03]}
51... e4+ {[%clk 0:00:05.9]} 52. Kd4 {[%clk 0:00:03.5]} 52... Rd2+ {[%clk
0:00:05.8]} 53. Kc3 {[%clk 0:00:04]} 53... e3 {[%clk 0:00:06.2]} 54. Rh5+ {[%clk
0:00:04]} 54... Kg4 {[%clk 0:00:06.5]} 55. Re5 {[%clk 0:00:03.6]} 55... Rd1
{[%clk 0:00:05.8]} 56. Re6 {[%clk 0:00:03.2]} 56... Kf3 {[%clk 0:00:05]} 57. Rg6
{[%clk 0:00:04.1]} 57... e2 {[%clk 0:00:05.1]} 58. Re6 {[%clk 0:00:04.5]} 58...
e1=Q+ {[%clk 0:00:05.2]} 59. Rxe1 {[%clk 0:00:05.4]} 59... Rxe1 {[%clk
0:00:06.1]} 60. b4 {[%clk 0:00:05.9]} 60... Ne4+ {[%clk 0:00:06.3]} 61. Kd4
{[%clk 0:00:06.8]} 61... Rh1 {[%clk 0:00:06.6]} 62. Ke5 {[%clk 0:00:07.7]} 62...
Rxh2 {[%clk 0:00:07.1]} 63. b5 {[%clk 0:00:08.4]} 63... Rb2 {[%clk 0:00:07.6]}
64. Kd4 {[%clk 0:00:06.7]} 64... Rxb5 {[%clk 0:00:07.9]} 65. Kc4 {[%clk
0:00:07.5]} 65... Rc5+ {[%clk 0:00:08.2]} 66. Kd4 {[%clk 0:00:08]} 66... Rc8
{[%clk 0:00:08.2]} 67. Kd5 {[%clk 0:00:08.2]} 67... Ke3 {[%clk 0:00:08.6]} 68.
Ke5 {[%clk 0:00:09.1]} 68... f3 {[%clk 0:00:09]} 69. Kd5 {[%clk 0:00:09.2]}
69... f2 {[%clk 0:00:09.6]} 70. Ke5 {[%clk 0:00:10.1]} 70... f1=Q {[%clk
0:00:09.8]} 71. Ke6 {[%clk 0:00:11]} 71... Qf6+ {[%clk 0:00:09.6]} 72. Kd5
{[%clk 0:00:11.9]} 72... Rd8+ {[%clk 0:00:09.7]} 73. Kc4 {[%clk 0:00:11.3]}
73... Qd4+ {[%clk 0:00:10]} 74. Kb3 {[%clk 0:00:11.6]} 74... Rb8+ {[%clk
0:00:10.3]} 75. Kc2 {[%clk 0:00:11.3]} 75... Rb2+ {[%clk 0:00:09.5]} 76. Kc1
{[%clk 0:00:10.1]} 76... Qd2# {[%clk 0:00:10.4]} 0-1